Cogmind - Beta 16.1 @@@ ROGUE MODE // 2026.02.20 @ 18:17:06 Player: FAQ Result: Destroyed by X-77 Beamer with Gatling Laser Performance ------------- Evolutions (6) 3000 Regions Visited (7) 1400 Robots Destroyed (57) 285 Value Destroyed (2319) 2319 Prototype IDs (5) 100 Alien Tech Used (0) 0 Bonus (1413) 1413 TOTAL SCORE: 8517 Bonus ------- High Alert Combat Kills 625 Follower Combat Kills 1067 Friendly Fire -279 Cogmind --------- Core Integrity 0/1150 Matter 243/300 Energy 84/100 System Corruption 10% Temperature Cool (27) Movement Core (150) Ox2 Location -4/Factory Parts ------- > --- POWER (2) -------- (None) > --- PROPULSION (5) --- (None) > --- UTILITY (7) ------ Advanced Signal Interpreter > --- WEAPON (5) ------- Bore Cannon > --- INVENTORY (5) ---- Experimental Melee Analysis Suite Hacking Suite Bore Cannon Advanced Datajack Peak State ------------ > --- POWER ------------ Light Antimatter Reactor Improved Fusion Compressor > --- PROPULSION ------- Flexi-carbon Leg Enhanced Armored Leg Myomer Leg Myomer Leg > --- UTILITY ---------- Advanced Cryofiber Web Medium Storage Unit Advanced Sensor Array Advanced Signal Interpreter Advanced Recoil Stabilizer Improved Transmission Jammer Improved Light Armor Plating > --- WEAPON ----------- Autogun Heavy Battle Rifle Heavy Battle Rifle Advanced KE Penetrator Enhanced Gauss Cannon > --- INVENTORY -------- Myomer Leg Experimental Melee Analysis Suite Hacking Suite Hacking Suite Bore Cannon Bore Cannon Bore Cannon Heavy Missile Launcher Advanced Datajack [Rating: 101] Favorites ----------- Power Light Angular Momentum Engine Engine Light Angular Momentum Engine Power Core Micro Fission Core Reactor Antimatter Reactor Propulsion Enhanced Armored Leg Leg Enhanced Armored Leg Utility Small Storage Unit Device Advanced Sensor Array Storage Small Storage Unit Processor Improved Signal Interpreter Hackware Makeshift System Shield Protection Hardened Light Armor Plating Weapon Heavy Battle Rifle Energy Gun Heavy Laser Ballistic Gun Heavy Battle Rifle Ballistic Cannon Magnetic Acceleration Cannon Launcher Heavy Missile Launcher Special Weapon Improved Remote Datajack Slashing Weapon Ripper Build | -11 -10 -10 -7 -5 -4 -4 -4 ------- Run | Yrd Mat Sub Rec Fac Fac Was Fac Slots Evolved 12 | . . . . 10 2 . . Power 1 | . . . . 1 . . . Propulsion 3 | . . . . 3 . . . Utility 5 | . . . . 3 2 . . Weapon 3 | . . . . 3 . . . Parts Attached 81 | 7 . 5 1 27 2 15 24 Power 10 | 1 . 1 . 3 1 2 2 Engine 5 | 1 . 1 . 2 . 1 . Core 2 | . . . . 1 1 . . Reactor 3 | . . . . . . 1 2 Propulsion 15 | 2 . . . 7 . . 6 Treads . | . . . . . . . . Leg 15 | 2 . . . 7 . . 6 Wheel . | . . . . . . . . Hover . | . . . . . . . . Flight . | . . . . . . . . Utility 30 | 2 . . . 10 1 8 9 Device 14 | 1 . . . 7 . 3 3 Storage 2 | 1 . . . . . . 1 Processor 2 | . . . . 1 . . 1 Hackware 1 | . . . . 1 . . . Protection 11 | . . . . 1 1 5 4 Artifact . | . . . . . . . . Weapon 26 | 2 . 4 1 7 . 5 7 Energy Gun 1 | . . . . 1 . . . Energy Cannon . | . . . . . . . . Ballistic Gun 15 | 2 . 3 1 2 . 4 3 Ballistic Cannon 7 | . . . . 3 . 1 3 Launcher 1 | . . . . . . . 1 Special Weapon 1 | . . . . 1 . . . Impact Weapon . | . . . . . . . . Slashing Weapon 1 | . . 1 . . . . . Piercing Weapon . | . . . . . . . . Special Melee Weapon . | . . . . . . . . Unidentified Prototypes 5 | . . . . 3 . 1 1 Parts Lost 44 | . . 1 . 7 11 . 25 Power 8 | . . 1 . 2 1 . 4 Propulsion 9 | . . . . 1 2 . 6 Utility 13 | . . . . 1 4 . 8 Weapon 14 | . . . . 3 4 . 7 Highest Loss Streak 18 | . . 1 . 6 11 . 18 To Critical Strikes 1 | . . . . . 1 . . Average Backups 6 | . 1 4 4 6 6 7 9 Power . | . 1 . . . 1 1 1 Propulsion . | . . . . . . . . Utility 2 | . . 1 2 3 3 3 2 Weapon 2 | . . 1 2 1 1 2 3 Tool/Special . | . . . . . . . . Unused Backups 7 | . . . 2 1 . . 4 Power . | . . . . . . . . Propulsion . | . . . . . . . . Utility 5 | . . . 2 . . . 3 Weapon . | . . . . . . . . Tool/Special 2 | . . . . 1 . . 1 Average Slot Usage (%) 89 | . 100 99 100 82 90 73 89 Engine 6 | . 14 13 14 6 . 4 2 Core 1 | . . . . 1 9 1 . Reactor 2 | . . . . . . 3 5 Leg 23 | . 28 28 28 25 25 15 20 Device 8 | . 14 13 14 7 5 3 7 Storage 7 | . 14 14 14 5 5 5 4 Processor 3 | . . . . 3 5 5 5 Protection 8 | . . . . 1 9 14 16 Ballistic Gun 19 | . 28 27 28 15 4 14 19 Ballistic Cannon 4 | . . . . 5 14 5 4 Slashing Weapon 1 | . . . . 3 4 . . Peak Build Rating 101 | 7 7 12 15 87 99 76 101 Average Rating 57 | 5 7 9 12 64 95 66 84 On Entrance 30 | . 7 7 12 14 86 39 76 Avg Prop Armor Cover (%) 3 | . . . . 3 . . . Naked Turns . | . . . . . . . . Heaviest Build 85 | 13 13 19 19 59 79 73 85 Greatest Support 110 | 20 20 20 20 95 95 60 110 Greatest Overweight (x) 21 | . . . . 1 21 1 1 Average Overweight (x) . | . . . . . . . . Largest Inventory Capacity 10 | 8 8 8 8 8 8 8 10 Average Capacity 8 | 7 8 8 8 8 8 8 9 Most Carried 10 | 1 1 8 8 8 7 8 10 Average Carried 7 | . 1 6 5 6 6 7 9 Final Capacity 10 | 8 8 8 8 8 8 8 10 Final Carried 8 | 1 1 8 6 8 7 8 8 Class Distribution -------------------- 27% | Mutant 19% | Scavenger-Tank 18% | Derelict-Tank 13% | Scavenger-Skirmisher 6% | Tank 5% | Commander-Mutant 5% | Skirmisher 3% | Commander-Skirmisher Dominant Class ---------------- Mutant | -10/Materials Mutant | -10/Subcaves Mutant | -7/Recycling Scavenger-Skirmisher | -5/Factory Tank | -4/Factory Derelict-Tank | -4/Waste Scavenger-Tank | -4/Factory Resources | -11 -10 -10 -7 -5 -4 -4 -4 ----------- Run | Yrd Mat Sub Rec Fac Fac Was Fac Matter Collected 3035 | 170 24 212 64 872 27 424 1242 Remotely . | . . . . . . . . Salvage Created 2340 | 114 24 65 143 1016 53 . 925 Parts 104 | 9 4 3 6 29 8 . 45 Haulers Intercepted 3 | . . . . 2 . . 1 Recyclers Shooed 2 | . . . . 2 . . . Parts Field Recycled . | . . . . . . . . Retrieved Matter . | . . . . . . . . Parts Self-Destructed 17 | . . 17 . . . . . Prevented . | . . . . . . . . Parts Restored . | . . . . . . . . Kills | -11 -10 -10 -7 -5 -4 -4 -4 ------- Run | Yrd Mat Sub Rec Fac Fac Was Fac Combat Hostiles Destroyed 35 | . . 1 3 13 1 . 17 Melee 4 | . . . . 3 1 . . Guns 22 | . . 1 3 6 . . 12 Cannons 6 | . . . . 3 . . 3 AOE 1 | . . . . . . . 1 Classes Destroyed 16 | 2 . 2 3 4 2 . 3 Worker 3 | . . . . . . . 3 Builder 5 | . . . . . 2 . 3 Tunneler 3 | 1 1 . . 1 . . . Hauler 3 | . . . . 2 . . 1 Recycler 3 | 1 . . . 1 . . 1 Mechanic 1 | . . . . 1 . . . Operator 1 | . . . . 1 . . . Turret 1 | . . 1 . . . . . Watcher 1 | . . . . . . . 1 Swarmer 9 | . . . 1 1 . . 7 Grunt 10 | . . . . 6 . . 4 Sentry 1 | . . . . . 1 . . Hunter 5 | . . . 1 1 . . 3 Programmer 8 | . . . 1 5 . . 2 Heavy 1 | . . . . . . . 1 Subdweller 1 | . . 1 . . . . . Wasp 1 | . . . . . . . 1 Best Kill Streak 6 | 2 1 1 2 3 3 . 6 Combat Bots Only 3 | . . 1 2 3 1 . 3 Max Kills in Single Turn 3 | 1 1 1 1 1 2 . 3 Gunslinging . | . . . . . . . . Exploded 1 | . . . . . . . 1 Melee 1 | . . . . 1 1 . . Uniques/NPCs Destroyed . | . . . . . . . . Combat | -11 -10 -10 -7 -5 -4 -4 -4 -------- Run | Yrd Mat Sub Rec Fac Fac Was Fac Hostile Shots Fired 813 | . . 67 20 119 263 . 344 Missed 273 | . . 30 4 31 99 . 109 Hits 540 | . . 37 16 88 164 . 235 Projectile 540 | . . 37 16 88 164 . 235 AOE 1 | . . . . . . . 1 Critical Strikes 16 | . . 1 1 3 3 . 8 Actively Blocked 1 | . . . . . . . 1 Part Disruptions 6 | . . . 1 1 4 . . Damage Taken 9496 | . . 363 249 1691 2693 . 4500 Core 1502 | . . 115 70 158 176 . 983 Absorbed by Shields . | . . . . . . . . Redirected to Shielding 145 | . . . . . . . 145 Regen/Repaired (Parts) 544 | . . . . . . 365 179 Core Remaining (%) 70 | 100 . . 26 84 . . . Volleys Fired 153 | 4 1 16 6 46 7 . 73 Largest 5 | 2 2 2 2 5 4 . 5 Hottest 180 | 40 40 63 63 160 160 . 180 Shots Fired 558 | 8 2 32 13 183 28 2 290 Gun 447 | 8 2 32 13 153 7 . 232 Cannon 109 | . . . . 29 21 2 57 Launcher 1 | . . . . . . . 1 Special 1 | . . . . 1 . . . Kinetic 547 | 8 2 32 13 173 28 2 289 Thermal 9 | . . . . 9 . . . Explosive 1 | . . . . . . . 1 Electromagnetic . | . . . . . . . . Robot Hit Streak 8 | 5 7 5 8 7 5 1 6 Robot Miss Streak 7 | 1 . 5 2 7 3 1 5 Penetration Max 1 | . . . . 1 . . 1 Secondary Targets 1 | . . . . 1 . . . Max Gunslinging Chain 1 | . . . . 1 . . . Shots Hit Robots 289 | 6 2 17 9 105 24 1 125 Core Hits 116 | 4 1 5 5 37 8 1 55 Critical Kills 4 | 1 1 . . 1 . . 1 Critical Parts Destroyed 3 | . . . . 1 . . 2 Critical Strikes 16 | 1 1 . . 5 2 . 7 Destroy 7 | 1 1 . . 2 . . 3 Blast 5 | . . . . . 1 . 4 Sever 4 | . . . . 3 1 . . Melee Attacks 36 | . . 4 . 16 16 . . Impact . | . . . . . . . . Slashing 36 | . . 4 . 16 16 . . Piercing . | . . . . . . . . Sneak Attacks 2 | . . . . 2 . . . Combat Hostiles . | . . . . . . . . Follow-up Attacks . | . . . . . . . . Damage Inflicted 8193 | 43 16 343 191 3028 993 33 3546 Guns 4901 | 43 16 343 191 2052 76 . 2180 Cannons 1616 | . . . . 361 213 33 1009 Explosions 544 | . . . . . 218 . 326 Melee 1101 | . . . . 615 486 . . Ramming 31 | . . . . . . . 31 Kinetic 6425 | 43 16 343 191 2321 289 33 3189 Thermal 367 | . . . . 92 181 . 94 Explosive 269 | . . . . . 37 . 232 Electromagnetic . | . . . . . . . . Impact . | . . . . . . . . Slashing 1101 | . . . . 615 486 . . Piercing . | . . . . . . . . Highest Corruption 10 | . . . 3 5 8 8 10 Average Corruption 6 | . . . 2 2 4 8 8 Corruption Purged . | . . . . . . . . Corruption Blocked . | . . . . . . . . Effects 85 | . . . 5 14 . 18 48 Message Errors 12 | . . . 1 2 . 3 6 Matter Fused 25 | . . . 2 4 . 6 13 Heat Flow Errors 12 | . . . 1 1 . 1 9 Energy Discharges 8 | . . . . 1 . 2 5 Parts Rejected 2 | . . . . . . . 2 Parts Fused 3 | . . . . 1 . 1 1 Data Loss (minor) 8 | . . . . 3 . 2 3 Data Loss (major) 4 | . . . . 1 . . 3 Misfires 3 | . . . 1 . . 2 . Alerts 1 | . . . . . . 1 . Weapon Failures 7 | . . . . 1 . . 6 Overload Shots . | . . . . . . . . Overflow Damage 154 | . . . . 116 . . 38 Projectiles 75 | . . . . 37 . . 38 Explosions . | . . . . . . . . Melee 79 | . . . . 79 . . . Knockbacks 8 | . . . . 1 . . 7 Impact . | . . . . . . . . Kinetic 7 | . . . . 1 . . 6 Secondary 1 | . . . . . . . 1 Self-Inflicted Damage 136 | . . . . . 134 . 2 Shots 2 | . . . . . 2 . . Rammed 1 | . . . . . . . 1 Targets Rammed 8 | . . . . . . . 8 Kicked 7 | . . . . . . . 7 Crushed . | . . . . . . . . Highest Temperature 927 | . . 5 140 390 403 96 927 Average Temperature 187 | . . 5 37 140 153 52 217 Received Heat Transfer 1627 | . . 249 . 459 126 . 793 Effects 48 | . . . . 3 . . 45 Shutdowns 7 | . . . . 1 . . 6 Energy Bleed 4 | . . . . 2 . . 2 Interference 18 | . . . . . . . 18 Matter Decay 2 | . . . . . . . 2 Short Circuit 2 | . . . . . . . 2 Damage (minor) 3 | . . . . . . . 3 Damage (major) 11 | . . . . . . . 11 Damage (core) 1 | . . . . . . . 1 Siege Activations . | . . . . . . . . Martial Activations . | . . . . . . . . Shielding Activations . | . . . . . . . . Robots Disrupted . | . . . . . . . . Combat Hostiles . | . . . . . . . . Robots Corrupted 1 | . . . . . . . 1 Combat Hostiles 1 | . . . . . . . 1 Parts Fried 1 | . . . . . . . 1 Impact Corruptions 1 | . . . . . . . 1 Robots Melted 1 | . . . . 1 . . . Combat Hostiles 1 | . . . . 1 . . . Parts Melted 2 | . . . . 1 1 . . Heat Transferred 498 | . . . . 148 150 . 200 Parts Sabotaged . | . . . . . . . . Parts Stolen . | . . . . . . . . Parts Stripped . | . . . . . . . . Power Chain Reactions . | . . . . . . . . Alert | -11 -10 -10 -7 -5 -4 -4 -4 ------- Run | Yrd Mat Sub Rec Fac Fac Was Fac Maximum Alert Level 4 | . . . . . 1 . 4 Low Security (%) 73 | 100 100 . 100 100 95 100 22 Level 1 2 | . . . . . 4 . 6 Level 2 . | . . . . . . . 1 Level 3 6 | . . . . . . . 18 Level 4 17 | . . . . . . . 51 Level 5 . | . . . . . . . . High Security . | . . . . . . . . Max Security . | . . . . . . . . Peak Influence 1412 | 5 5 . 56 137 205 15 1412 Initial 46 | . . . 11 . 46 15 . Average 308 | . . . 9 47 65 . 853 Influence Increases 3142 | 10 5 50 151 542 230 2 2152 Destroy 0b10 Robot/C 1240 | . . 20 60 300 20 . 840 Destroy 0b10 Robot/NC 130 | 10 5 . 5 25 10 . 75 Destroy Leader 234 | . . . . 64 10 . 160 Allied During Kill 618 | . . . 7 14 . . 597 Successful Hack 65 | . . . 53 . . . 12 Disable Machine 300 | . . . . 60 60 . 180 Destroy Structure 435 | . . . 11 34 100 2 288 Lose Combat Pursuer 120 | . . 30 15 45 30 . . Influence Decreases 1920 | 10 . 31 175 445 283 46 930 Entered New Map 96 | . . 3 13 . 51 29 . Time Decay 1077 | 10 . 18 146 324 122 17 440 Lost Part 440 | . . 10 . 70 110 . 250 Lost Ally 307 | . . . 16 51 . . 240 Squads Dispatched 27 | . . . . 9 3 . 15 Investigation 1 | . . . . 1 . . . Extermination 5 | . . . . 2 . . 3 Reinforcement 12 | . . . . 3 3 . 6 Assault 3 | . . . . . . . 3 Garrison 6 | . . . . 3 . . 3 Intercept . | . . . . . . . . Searches Triggered . | . . . . . . . . Construction Impeded 1 | . . . . . . . 1 Haulers Reinforced 1 | . . . . 1 . . . Active Scanning Responses . | . . . . . . . . Cargo Convoy Interrupts . | . . . . . . . . Stealth | -11 -10 -10 -7 -5 -4 -4 -4 --------- Run | Yrd Mat Sub Rec Fac Fac Was Fac Distress Signals 2 | . . . . . 1 . 1 Communications Jammed . | . . . . . . . . Distress Signals . | . . . . . . . . Times Spotted 105 | . . 11 4 19 14 . 57 Peak Tracking Total 11 | . . 3 3 4 11 . 9 Tactical Retreats 7 | . . 2 1 2 2 . . Traps | -11 -10 -10 -7 -5 -4 -4 -4 ------- Run | Yrd Mat Sub Rec Fac Fac Was Fac Traps Triggered 4 | . . . . 1 1 . 2 Indirectly . | . . . . . . . . Trap Hack Attempts . | . . . . . . . . Triggered . | . . . . . . . . Disarmed . | . . . . . . . . Reprogrammed . | . . . . . . . . Reused . | . . . . . . . . Traps Extracted . | . . . . . . . . Installed . | . . . . . . . . Triggered . | . . . . . . . . Machines | -11 -10 -10 -7 -5 -4 -4 -4 ---------- Run | Yrd Mat Sub Rec Fac Fac Was Fac Machines Disabled 21 | . . 1 . 4 4 . 12 Max in Single Turn 4 | . . 1 . 1 4 . 4 Machines Repaired . | . . . . . . . . Machines Dismantled . | . . . . . . . . Machines Sabotaged . | . . . . . . . . Overloaded Fab Kills . | . . . . . . . . Hacking | -11 -10 -10 -7 -5 -4 -4 -4 --------- Run | Yrd Mat Sub Rec Fac Fac Was Fac Machines Accessed 12 | . . . 7 2 . . 3 Terminals 7 | . . . 5 2 . . . Fabricators . | . . . . . . . . Repair Stations . | . . . . . . . . Recycling Units 3 | . . . 2 . . . 1 Scanalyzers 1 | . . . . . . . 1 Garrison Access 1 | . . . . . . . 1 Total Hacks 34 | . . . 22 5 . . 7 Successful 18 | . . . 13 2 . . 3 Failed 16 | . . . 9 3 . . 4 Catastrophic 2 | . . . 1 1 . . . Database Lockouts . | . . . . . . . . Manual 24 | . . . 19 5 . . . Terminals 21 | . . . 16 5 . . . Fabricators . | . . . . . . . . Repair Stations . | . . . . . . . . Recycling Units 8 | . . . 6 . . . 2 Scanalyzers 2 | . . . . . . . 2 Garrison Access 3 | . . . . . . . 3 Terminal Hacks 3 | . . . 3 . . . . Robot Analysis 3 | . . . 3 . . . . Fabricator Hacks . | . . . . . . . . Repair Station Hacks . | . . . . . . . . Recycling Unit Hacks 3 | . . . 1 . . . 2 Process 1 | . . . . . . . 1 Retrieve Matter 1 | . . . . . . . 1 Retrieve Components 1 | . . . 1 . . . . Scanalyzer 1 | . . . . . . . 1 Retrieve Study 1 | . . . . . . . 1 Garrison Access Hacks . | . . . . . . . . Unauthorized Hacks 11 | . . . 9 2 . . . Terminals 8 | . . . 6 2 . . . Botnet 4 | . . . 3 1 . . . Skim 4 | . . . 3 1 . . . Fabricators . | . . . . . . . . Repair Stations . | . . . . . . . . Recycling Units 3 | . . . 3 . . . . Reject 1 | . . . 1 . . . . Recyclers 1 | . . . 1 . . . . Mask 1 | . . . 1 . . . . Scanalyzers . | . . . . . . . . Garrison Access . | . . . . . . . . Data Cores Recovered . | . . . . . . . . Used . | . . . . . . . . Hacking Detections 10 | . . . 5 2 . . 3 Full Trace Events . | . . . . . . . . Feedback Events . | . . . . . . . . Feedback Blocked . | . . . . . . . . Robot Schematics Acquired . | . . . . . . . . Robots Built . | . . . . . . . . Authchips . | . . . . . . . . Time . | . . . . . . . . Total Robot Build Rating . | . . . . . . . . Part Schematics Acquired . | . . . . . . . . Parts Built . | . . . . . . . . Authchips . | . . . . . . . . Time . | . . . . . . . . Total Part Build Rating . | . . . . . . . . Part Studies Acquired 1 | . . . . . . . 1 Parts Repaired . | . . . . . . . . Time . | . . . . . . . . Parts Recycled . | . . . . . . . . Recycled Matter 226 | . . . . . . . 226 Retrieved Matter 441 | . . . . . . . 441 Retrieved Components 3 | . . . 3 . . . . Parts Scanalyzed . | . . . . . . . . Part Schematics Acquired . | . . . . . . . . Parts Damaged . | . . . . . . . . Bothacking | -11 -10 -10 -7 -5 -4 -4 -4 ------------ Run | Yrd Mat Sub Rec Fac Fac Was Fac Used RIF Installer . | . . . . . . . . Robots Hacked 1 | . . . . 1 . . . Non-combat 1 | . . . . 1 . . . Combat . | . . . . . . . . Robot Hacks Applied 1 | . . . . 1 . . . parse_system 1 | . . . . 1 . . . Relay Couplers Released . | . . . . . . . . Fabnet Peak Effective % . | . . . . . . . . Robots Rewired 7 | . . . 7 . . . . Allies Hacked 1 | . . . . 1 . . . Hacks Repelled . | . . . . . . . . Allies | -11 -10 -10 -7 -5 -4 -4 -4 -------- Run | Yrd Mat Sub Rec Fac Fac Was Fac Total Allies 27 | . . . 7 . . 20 . Largest Group 20 | . . . 7 6 . 20 20 Highest-Rated Group 744 | . . . 125 104 . 744 744 Highest-Rated Ally 50 | . . . 32 32 . 50 50 Total Orders 2 | . . . 2 . . . . FOLLOW 1 | . . . 1 . . . . TUNNEL 1 | . . . 1 . . . . Ally Attacks 234 | . . . 1 14 . . 219 Total Damage 5461 | . . . . 332 . . 5129 Kills 37 | . . . . 2 . . 35 Allies Corrupted . | . . . . . . . . Allies Melted 1 | . . 1 . . . . . Intel | -11 -10 -10 -7 -5 -4 -4 -4 ------- Run | Yrd Mat Sub Rec Fac Fac Was Fac Active Infowar (turns) 4309 | 20 39 490 822 960 358 373 1247 Optics 383 | . . . . 383 . . . Sensors 2675 | . . . . 754 358 373 1190 Seismic 1582 | 20 39 490 822 211 . . . Jamming 86 | . . . . . . . 86 ECM 1 | . . . . 1 . . . Robot Analysis Total 3 | . . . 3 . . . . Derelict Logs Recovered . | . . . . . . . . Drone Launches . | . . . . . . . . Drone Recoveries . | . . . . . . . . Exploration | -11 -10 -10 -7 -5 -4 -4 -4 ------------- Run | Yrd Mat Sub Rec Fac Fac Was Fac Turns Passed 4871 | 83 39 492 822 1037 364 546 1488 Spaces Moved 2852 | 53 26 341 602 574 179 318 759 Core 14 | 2 . . . . 2 . 10 Treads . | . . . . . . . . Legs 2838 | 51 26 341 602 574 177 318 749 Wheels . | . . . . . . . . Hover . | . . . . . . . . Flight . | . . . . . . . . Fastest Speed 50 | 50 120 120 120 120 120 120 50 Average Speed 132 | 117 120 120 120 129 128 160 141 Slowest Speed 1100 | 120 120 120 120 190 1100 190 190 Overloaded Moves . | . . . . . . . . Propulsion Burnouts . | . . . . . . . . Robots Hopped . | . . . . . . . . Potential Cave-ins . | . . . . . . . . Cave-ins Triggered 1 | . . . . . . . 1 Exploration Rate (%) 31 | 4 6 20 87 16 6 93 17 Regions Visited 7 Branch Regions 2 Pre-discovered Areas . | . . . . . . . . Known Exits Taken 1 | . . . . 1 . . . Unknown Exits Taken 4 | 1 1 1 1 . . . . Scrap Searched 12 | . . 12 . . . . . Spaces Dug 6 | . . . . . . . 6 Terrain Destroyed 191 | . . . 1 16 51 1 122 Melee . | . . . . . . . . Projectile 72 | . . . 1 16 7 1 47 AOE 119 | . . . . . 44 . 75 Terrain Rammed . | . . . . . . . . Walls Destroyed . | . . . . . . . . Machines Disabled . | . . . . . . . . Actions | -11 -10 -10 -7 -5 -4 -4 -4 --------- Run | Yrd Mat Sub Rec Fac Fac Was Fac Total 3540 | 64 32 391 692 741 273 353 994 Wait 276 | . 6 10 33 49 68 9 101 Move 2846 | 52 25 340 601 573 179 317 759 Hop . | . . . . . . . . Pick Up 25 | 1 . 8 4 5 1 4 2 Fast Attach 53 | 7 . 1 . 23 . 11 11 Attach 16 | . . 2 . 5 1 2 6 Detach 15 | . . 2 . 10 . 2 1 Swap 26 | . . 4 1 3 1 2 15 Drop 40 | . . 4 6 11 . 6 13 Fire 153 | 4 1 16 6 46 7 . 73 Melee 36 | . . 4 . 16 16 . . Ram 1 | . . . . . . . 1 Kick 7 | . . . . . . . 7 Crush . | . . . . . . . . Escape Stasis 5 | . . . . . . . 5 Rewire 41 | . . . 41 . . . . Trap . | . . . . . . . . Miscellaneous . | . . . . . . . . Route ------- -11/Scrapyard -10/Materials -10/Subcaves (discovered 2 exits: *Rec / [*Scr]) -7/Recycling -5/Factory (discovered 3 exits: *Fac / *Upp x2) -4/Factory -4/Waste -4/Factory History --------- Turn | Location | Event 41 | -11/Scrapyard | Discovered new exit (range 15) 84 | -11/Scrapyard | Entered Materials 85 | -10/Materials | Met a group of wandering Federalists 105 | -10/Materials | Discovered new exit (range 9) 123 | -10/Materials | Entered Subcaves 123 | -10/Subcaves | Accompanied by 4 allies 124 | -10/Subcaves | Continued accompanying wandering Federalists (5) 124 | -10/Subcaves | Approached by a straggling Scientist 309 | -10/Subcaves | Build established: Mutant 357 | -10/Subcaves | Wandering Federalist uncovered a shortcut to Scraptown 465 | -10/Subcaves | Lost 8 allies 472 | -10/Subcaves | Disturbed a concealed Subdweller 567 | -10/Subcaves | Discovered new exit (range 10) 615 | -10/Subcaves | Entered Recycling 687 | -7/Recycling | Scanned before Scraplab entrance 1116 | -7/Recycling | Core integrity fell below 50% 1408 | -7/Recycling | Discovered new exit (range 16) 1437 | -7/Recycling | Entered Factory 1437 | -5/Factory | Accompanied by 6 allies 1437 | -5/Factory | Evolved 10 slots: Power x1, Propulsion x3, Utility x3, Weapon x3 1634 | -5/Factory | Discovered new exit (range 10) 1652 | -5/Factory | Identified exit to Upper Caves 1693 | -5/Factory | Lost 4 allies 1887 | -5/Factory | Lost 6 parts (2p1n1u2w) 2093 | -5/Factory | Discovered exit to Upper Caves (range 15) 2102 | -5/Factory | Garrison activated, responded to threat 2397 | -5/Factory | Build established: Scavenger-Skirmisher 2401 | -5/Factory | Discovered new exit (range 7) 2410 | -5/Factory | Identified exit to Factory 2474 | -5/Factory | Entered another Factory area 2474 | -4/Factory | Evolved 2 slots: Utility x2 2524 | -4/Factory | Discovered new exit (range 3) 2526 | -4/Factory | Identified exit to Research 2811 | -4/Factory | Build established: Tank 2838 | -4/Factory | Sucked down chute 2838 | -4/Factory | Entered Waste 2839 | -4/Waste | Joined by Warlord forces that had cleared the area 2841 | -4/Waste | Found Prototype Device 2841 | -4/Waste | Identified Femtoactuators 2847 | -4/Waste | Found Adv. Force Booster 2863 | -4/Waste | Lost 11 parts (1p2n4u4w) 2925 | -4/Waste | Found Damper Plating 3287 | -4/Waste | Build established: Derelict-Tank 3292 | -4/Waste | Discovered new exit (range 11) 3372 | -4/Waste | Identified exit to Factory 3384 | -4/Waste | Entered Factory 3384 | -4/Factory | Accompanied by 20 allies 3857 | -4/Factory | Crushed by falling debris 3917 | -4/Factory | Lost 3 allies 3954 | -4/Factory | Garrison activated, responded to threat 4014 | -4/Factory | Lost 8 allies 4023 | -4/Factory | P-70 Sage assimilated allied WM-ESS(g) 4031 | -4/Factory | P-70 Sage assimilated allied PZ-ROQ(m) 4035 | -4/Factory | P-70 Sage assimilated allied 5T-DMV(m) 4114 | -4/Factory | Lost 3 allies 4134 | -4/Factory | First assault squad dispatched 4194 | -4/Factory | Build established: Scavenger-Tank 4457 | -4/Factory | System corruption reached 10% 4742 | -4/Factory | Found Prototype Processor 4743 | -4/Factory | Lost 3 parts (1p1n1u) 4799 | -4/Factory | Core integrity fell below 50% 4865 | -4/Factory | Core integrity fell below 20% 4872 | -4/Factory | Destroyed by X-77 Beamer with Gatling Laser Last Messages --------------- 04854_ Acquired Flexi-carbon Leg. 04859_ 5T-DMV(m) repairs G-67 Veteran Plasma Rifle. 04861_ Kicked G-73 Enforcer. 04861_ X-77 Beamer suffers critical hit (Burn). 04862_ Kicked G-73 Enforcer. 04864_ Critical hit (Burn: +37). 04864_ C-45 Heavy ARC bursts open, deploying its payload. 04864_ G-73 Enforcer unfolds itself. 04864_ L-61 Swordsman unfolds itself. 04864_ G-67 Veteran unfolds itself. 04864_ M-36 Artificer unfolds itself. 04865_ Flexi-carbon Leg destroyed. 04865_ Slammed into G-73 Enforcer. 04865_ Adv. Signal Interpreter broken. 04865_ Destabilizing: Short circuit. 04869_ O-24 Administrator: "IFF HANDSHAKE FAILED. SECURING TERMINAL." 04871_ O-24 Administrator uses terminal to summon reinforcements. 04871_ ALERT: Hostiles spotted, dispatching reinforcements to Terminal F016. 04871_ O-24 Administrator locks terminal. Map ----- +----------------------------------------------------+ | ??????????????????????????# ## " | | ??????????????????????????# % ## | | ??????????????????????????####+######+########## " | | ?????????????????????????????? # % #????# " | | ???????????????????????????? # """" #????# " | | ??????????????????????????"" # %""S"" ##???# | | ??????????????????????????"" #! " ###??# | | ??????????????????????????""" # # ##?### | | ??????????????????????????""" # # #??# | | ??????????????????????????""" # #???# | | ???????????????????????????? # #??? | | ??????????????????????????? # ##### | | ???????????????????????????####### ## #/## | | ???????????????????????????????##### # # # | | ???????????????????????????????# %# # # | | ???????????????????????????????# # ## | | ????????????????????????##?????# # ## | | ????????????????????#####T######" # ## | | ????????????????????# ^ g /%" ## ## | | ????????????????????# x####" # # !!% | | ??????????????????### #####/##=%* %!! | | ??????????????????#"" """ # !% ! + !! | | ??????????????????#"" """ #####!### # ## | | ??????????????????#"T """ ##### #?# # #? | | ??????????????????#""o xl #### ########? | | ??????????????????#"" ]!@ g # =]! ! #? | | ??????????????????### ]! # " " " #? | | ???????????????? !! # "" " " #? | | ???????????????########"T"######### "" """ #? | | ??????????????????????####????????# "" """ ! #? | | ??????????????????????????????????# #? | | ??????????????????????????????????###############? | | | | | | | | | | | | | | | | | | | | | | | | | | | | | | | | | | | | | +----------------------------------------------------+ Best States ------------- Heat Dissipation 43 Energy Generation 51 Energy Capacity 550 Matter Stores 300 Matter Capacity 300 Sight Range 21 Robot Scan Range 16 Terrain Scan Density 10 Jamming Range 14 Base Temperature (-) 200 Armor Coverage 825 Propulsion Shielding 66 Evasion (%) 55 Recoil Reduction 6 Defensive Hacking 11 Item Schematics ----------------- None Robot Schematics ------------------ None Fabricated ------------ Nothing Repaired ---------- Nothing Studied --------- Enh. Gauss Cannon | -4/Factory | Hacked Alien Tech Used ----------------- None Achievements -------------- Like A Rock Challenges ------------ None Game ------ Seed DispersionThrowingRail Manual? 0 Play Time 00:48:57 Cumulative 49.6 hours Start 2026.02.20 @ 17:26:52 End 2026.02.20 @ 18:17:06 Sessions 1 Manual Loads 0 Difficulty Rogue Special Mode None Game No. 84 Rogue 84 Adventurer 0 Explorer 0 Win Type - Total 0 Types 0/0/0/0/0/0/0/0/0/0 Lore% 31 Gallery% 35 Achievement% 28 Wizard Run 0 Options --------- Layout 0 ASCII 1 Keyboard 1 Movement Numpad Keybinds 0 Fullscreen 1 Font 18/VGA_Max Map View 76x50 Zoom Use 0% Tactical HUD 1 Map Filters NONE Filters NONE Steam 1 RUN: 2cb7a4a4-fe00-4d05-bd21-119e933f6f80